[Event "6th Cesme Open-A 2018"]
[Site "Cesme"]
[Date "2018.06.30"]
[Round "7.5"]
[White "Gadimbayli, Abdulla"]
[Black "Ozen, Deniz"]
[Result "1/2-1/2"]
[ECO "C07"]
[WhiteElo "2420"]
[BlackElo "2408"]
[Annotator "ChessBase"]
[PlyCount "73"]
[EventDate "2018.06.26"]
[EventType "swiss"]
[EventCountry "TUR"]
[SourceTitle "playchess.com"]
[Source "ChessBase"]
[SourceQuality "1"]
[TimeControl "5400+30"]

1. e4 {[%emt 0:07:30]} e6 {[%emt 0:00:30]} 2. d4 {[%emt 0:00:30]} d5 {[%emt 0:00:00]} 3. Nd2 {[%emt 0:00:30]} c5 {[%emt 0:00:00]} 4. exd5 {[%emt 0:00:30]} Qxd5 {[%emt 0:00:30]} 5. Ngf3 {[%emt 0:00:00]} cxd4 {[%emt 0:00:30]} 6. Bc4 {[%emt 0:00:00]} Qd7 {[%emt 0:00:00]} 7. O-O {[%emt 0:00:00]} Nc6 {[%emt 0:01:00]} 8. Nb3 {[%emt 0:01:00]} a6 {[%emt 0:00:30]} 9. Nbxd4 {[%emt 0:00:30]} Nxd4 {[%emt 0:00:30]} 10. Nxd4 {[%emt 0:00:30]} Qc7 {[%emt 0:00:00]} 11. Qe2 {[%emt 0:00:00]} Bd6 {[%emt 0:00:00]} 12. h3 {[%emt 0:00:00]} Ne7 {[%emt 0:00:30]} 13. Be3 {[%emt 0:00:30]} O-O {[%emt 0:00:30]} 14. Bb3 {[%emt 0:00:00]} b6 {[%emt 0:08:30]} 15. Rfd1 {[%emt 0:09:00]} e5 {[%emt 0:17:30]} 16. Nf3 {[%emt 0:02:30]} h6 {[%emt 0:02:30]} 17. Nd2 {[%emt 0:26:30]} Qc6 {[%emt 0:09:30]} 18. Qc4 {[%emt 0:16:30]} Bc7 {[%emt 0:07:30]} 19. Qxc6 {[%emt 0:05:30]} Nxc6 {[%emt 0:00:00]} 20. Ne4 {[%emt 0:01:30]} Rb8 {[%emt 0:10:00]} 21. Nd6 {[%emt 0:12:24]} Na5 {[%emt 0:04:30]} 22. Nxc8 {[%emt 0:01:00]} Rfxc8 {[%emt 0:01:30]} 23. Rd7 {[%emt 0:06:28]} Nxb3 {[%emt 0:00:30]} 24. axb3 {[%emt 0:00:07]} a5 {[%emt 0:04:30]} 25. c4 {[%emt 0:00:25]} Bd8 {[%emt 0:03:30]} 26. Rd5 {[%emt 0:01:50]} f6 {[%emt 0:01:30]} 27. Rb5 {[%emt 0:01:48]} Kf7 {[%emt 0:00:30]} 28. b4 {[%emt 0:01:18]} Ke6 {[%emt 0:02:30]} 29. b3 {[%emt 0:01:55]} Bc7 {[%emt 0:02:30]} 30. Rd1 {[%emt 0:01:08]} h5 {[%emt 0:02:30]} 31. Kf1 {[%emt 0:01:09]} axb4 {[%emt 0:02:55]} 32. Ra1 {[%emt 0:01:43]} Kd7 {[%emt 0:01:45]} 33. Rxb4 {[%emt 0:00:38]} Kc6 {[%emt 0:00:46]} 34. Rba4 {[%emt 0:00:26]} Bd6 {[%emt 0:01:05]} 35. b4 {[%emt 0:01:35]} Kd7 {[%emt 0:01:01]} 36. Rc1 {[%emt 0:00:10]} Ra8 {[%emt 0:02:40]} 37. Rxa8 {[%emt 0:01:11]} 1/2-1/2

[Event "6th Cesme Open-A 2018"]
[Site "Cesme"]
[Date "2018.06.30"]
[Round "7.8"]
[White "Danin, Alexandre"]
[Black "Isik, Engin Yasar"]
[Result "1/2-1/2"]
[ECO "B92"]
[WhiteElo "2539"]
[BlackElo "2156"]
[Annotator "ChessBase"]
[PlyCount "110"]
[EventDate "2018.06.26"]
[EventType "swiss"]
[EventCountry "TUR"]
[SourceTitle "playchess.com"]
[Source "ChessBase"]
[SourceQuality "1"]
[TimeControl "5400+30"]

1. e4 {[%emt 0:00:30]} c5 {[%emt 0:00:30]} 2. Nf3 {[%emt 0:00:30]} d6 {[%emt 0:00:00]} 3. d4 {[%emt 0:00:00]} cxd4 {[%emt 0:00:00]} 4. Nxd4 {[%emt 0:00:00]} Nf6 {[%emt 0:00:00]} 5. Nc3 {[%emt 0:00:30]} a6 {[%emt 0:00:00]} 6. Be2 {[%emt 0:00:00]} e5 {[%emt 0:00:30]} 7. Nb3 {[%emt 0:00:00]} Be7 {[%emt 0:00:30]} 8. Bg5 {[%emt 0:00:00]} Be6 {[%emt 0:00:00]} 9. Bxf6 {[%emt 0:01:00]} Bxf6 {[%emt 0:00:00]} 10. Qd3 {[%emt 0:00:30]} Nc6 {[%emt 0:00:00]} 11. Nd5 {[%emt 0:00:30]} Bg5 {[%emt 0:02:00]} 12. Rd1 {[%emt 0:01:30]} O-O {[%emt 0:00:30]} 13. c3 {[%emt 0:01:30]} Rc8 {[%emt 0:03:30]} 14. h3 {[%emt 0:00:30]} Ne7 {[%emt 0:11:30]} 15. Nxe7+ {[%emt 0:30:30]} Qxe7 {[%emt 0:17:30]} 16. Bg4 {[%emt 0:09:30]} Rfd8 {[%emt 0:07:30]} 17. Bxe6 {[%emt 0:02:30]} fxe6 {[%emt 0:00:30]} 18. O-O {[%emt 0:00:30]} Qc7 {[%emt 0:11:30]} 19. Qe2 {[%emt 0:01:30]} Bf6 {[%emt 0:08:30]} 20. Rd3 {[%emt 0:05:30]} Rf8 {[%emt 0:05:30]} 21. Qg4 {[%emt 0:03:30]} Qe7 {[%emt 0:05:30]} 22. Rfd1 {[%emt 0:02:30]} Rfd8 {[%emt 0:01:30]} 23. g3 {[%emt 0:02:30]} Rd7 {[%emt 0:05:09]} 24. Nd2 {[%emt 0:02:30]} b5 {[%emt 0:01:40]} 25. h4 {[%emt 0:00:30]} Re8 {[%emt 0:18:41]} 26. Nb3 {[%emt 0:02:30]} Rdd8 {[%emt 0:00:00]} 27. Na1 {[%emt 0:05:30]} Qc7 {[%emt 0:00:00]} 28. Nc2 {[%emt 0:00:30]} a5 {[%emt 0:00:00]} 29. Ne3 {[%emt 0:04:30]} Qc6 {[%emt 0:00:00]} 30. a3 {[%emt 0:03:30]} Kh8 {[%emt 0:00:00]} 31. R1d2 {[%emt 0:00:49]} Rd7 {[%emt 0:00:00]} 32. Qd1 {[%emt 0:05:41]} Be7 {[%emt 0:00:00]} 33. Qh5 {[%emt 0:07:41]} Rf8 {[%emt 0:00:00]} 34. Qg4 {[%emt 0:01:09]} Rf6 {[%emt 0:00:00]} 35. Ng2 {[%emt 0:01:57]} Bd8 {[%emt 0:00:00]} 36. Rf3 {[%emt 0:02:41]} Rdf7 {[%emt 0:00:00]} 37. Rxf6 {[%emt 0:01:43]} Rxf6 {[%emt 0:00:00]} 38. Qe2 {[%emt 0:00:22]} Bb6 {[%emt 0:00:00]} 39. Qd3 {[%emt 0:00:51]} h6 {[%emt 0:02:15]} 40. Ne3 {[%emt 0:00:43]} Bxe3 {[%emt 0:02:52]} 41. Qxe3 {[%emt 0:00:05]} Rf7 {[%emt 0:00:00]} 42. Qd3 {[%emt 0:00:54]} Rd7 {[%emt 0:00:00]} 43. h5 {[%emt 0:00:18]} a4 {[%emt 0:00:20]} 44. Qe2 {[%emt 0:00:23]} Re7 {[%emt 0:00:36]} 45. Qg4 {[%emt 0:00:37]} d5 {[%emt 0:02:18]} 46. Qg6 {[%emt 0:01:20]} d4 {[%emt 0:00:02]} 47. Rd3 {[%emt 0:00:18]} Qd7 {[%emt 0:01:37]} 48. cxd4 {[%emt 0:00:49]} exd4 {[%emt 0:00:30]} 49. e5 {[%emt 0:00:00]} Qd5 {[%emt 0:00:33]} 50. Qg4 {[%emt 0:00:00]} Rc7 {[%emt 0:00:02]} 51. Rd1 {[%emt 0:00:24]} d3 {[%emt 0:00:25]} 52. Qg6 {[%emt 0:00:23]} d2 {[%emt 0:01:22]} 53. Qe8+ {[%emt 0:00:30]} Kh7 {[%emt 0:00:00]} 54. Qg6+ {[%emt 0:01:14]} Kh8 {[%emt 0:00:09]} 55. Qe8+ {[%emt 0:00:30]} Kh7 {[%emt 0:00:30]} 1/2-1/2

[Event "6th Cesme Open-A 2018"]
[Site "Cesme"]
[Date "2018.06.30"]
[Round "7.9"]
[White "Guseynov, Alihan"]
[Black "Odeev, Handszar"]
[Result "1/2-1/2"]
[ECO "D94"]
[WhiteElo "2341"]
[BlackElo "2415"]
[Annotator "NA"]
[PlyCount "71"]
[EventDate "2018.06.26"]
[EventType "swiss"]
[EventCountry "TUR"]
[SourceTitle "playchess.com"]
[Source "ChessBase"]
[SourceQuality "1"]
[TimeControl "5400+30"]

{[%evp 8,71,31,4,0,0,0,-6,32767,18,4,8,1,10,32,10,31,33,22,0,7,20,16,9,11,13,19,0,30,30,40,43,30,58,32767,30,48,32767,29,37,24,34,35,50,42,47,42,41,32767,32767,32767,33,32767,32767,32767,32767,32767,32767,32767,32767,32767,32767,32767,18,17,25]} 1. d4 {[%emt 0:00:30]} Nf6 {[%emt 0:13:30]} 2. c4 {[%emt 0:00:30]} g6 {[%emt 0:00:30]} 3. Nc3 {[%emt 0:00:30]} d5 {[%emt 0:00:30]} 4. Nf3 {[%emt 0:00:30]} Bg7 {[%emt 0:00:30]} 5. e3 {[%emt 0:00:30]} O-O {[%emt 0:01:30]} 6. Bd2 {[%emt 0:00:30]} e6 {[%emt 0:03:30]} 7. Rc1 {[%emt 0:01:30]} Ne4 {[%emt 0:00:30] D94: Grünfeld: 4 Nf3 Bg7 5 e3} (7... b6 8. Be2 Bb7 9. O-O Nbd7 10. b4 dxc4 11. Bxc4 c5 12. dxc5 bxc5 13. Na4 cxb4 14. Bxb4 Re8 15. Nc5 Nxc5 16. Bxc5 Ne4 17. Qxd8 Rexd8 18. Bd4 Bxd4 19. Nxd4 Nd2 20. Rfe1 e5 21. Nb3 Nxc4 {½-½ (21) Granda Zuniga,J (2646)-Ivanisevic,I (2648) Sitges 2016}) 8. Bd3 {[%emt 0:09:30]} Nxd2 {[%emt 0:01:30] LiveBook: 5 Games} 9. Qxd2 {[%emt 0:00:30]} ({Much weaker is} 9. Kxd2 dxc4 10. Bxc4 c5 $15) 9... dxc4 {[%emt 0:08:30]} 10. Bxc4 {[%emt 0:00:30]} Nd7 {[%emt 0:02:30]} 11. O-O {[%emt 0:04:30]} a6 $146 {[%emt 0:10:30]} ({Predecessor:} 11... c5 12. Rfd1 cxd4 13. Nxd4 Qe7 14. Be2 a6 15. Nb3 {1-0 (79) Stern,R (2506)-Degtiarev,E (2368) Germany 2010}) 12. Rfd1 {[%emt 0:18:30]} Qe7 {[%emt 0:06:30]} 13. a4 {[%emt 0:13:30]} Rd8 {[%emt 0:04:30]} 14. Qc2 {[%emt 0:09:30]} b6 {[%emt 0:06:30]} 15. d5 {[%emt 0:06:30]} Ne5 {[%emt 0:12:30]} 16. Nxe5 {[%emt 0:08:30]} Bxe5 {[%emt 0:00:00]} 17. Qe4 {[%emt 0:03:06]} Bd6 {[%emt 0:01:00]} 18. dxe6 {[%emt 0:02:50]} Bxe6 {[%emt 0:00:00]} 19. Bxe6 {[%emt 0:00:21]} Qxe6 {[%emt 0:00:00]} 20. Qxe6 {[%emt 0:01:41]} fxe6 {[%emt 0:00:30]} 21. Ne4 {[%emt 0:03:10]} Be7 {[%emt 0:00:30]} 22. Kf1 {[%emt 0:01:16]} c5 {[%emt 0:02:30]} 23. Rxd8+ {[%emt 0:01:33]} Rxd8 {[%emt 0:00:00] [#]} 24. a5 $1 {[%emt 0:00:08]} bxa5 {[%emt 0:13:24]} 25. Ra1 {[%emt 0:00:30]} Rb8 {[%emt 0:00:45]} 26. Rxa5 {[%emt 0:01:02]} Rxb2 {[%emt 0:00:31]} 27. Rxa6 {[%emt 0:04:45]} Kf7 {[%emt 0:00:25]} 28. Rc6 {[%emt 0:06:34]} Rc2 {[%emt 0:01:38]} 29. h3 {[%emt 0:01:04]} Rc4 {[%emt 0:00:22]} 30. Nd2 {[%emt 0:00:06]} Ra4 {[%emt 0:02:38]} 31. Ke2 {[%emt 0:00:14]} Ra2 {[%emt 0:02:17]} 32. Kd3 {[%emt 0:00:30]} Ra3+ {[%emt 0:00:30]} 33. Ke2 {[%emt 0:00:00]} Ra2 {[%emt 0:00:00]} 34. Kd3 {[%emt 0:00:36]} Ra3+ {[%emt 0:00:00]} 35. Kc4 {[%emt 0:01:12]} Ra2 $11 {[%emt 0:00:37]} 36. Ne4 {[%emt 0:00:26]} 1/2-1/2

[Event "6th Cesme Open-A 2018"]
[Site "Cesme"]
[Date "2018.06.30"]
[Round "7.10"]
[White "Bashirli, Nail"]
[Black "Koksal, Ege"]
[Result "1-0"]
[ECO "C80"]
[WhiteElo "2385"]
[BlackElo "2356"]
[Annotator "ChessBase"]
[PlyCount "89"]
[EventDate "2018.06.26"]
[EventType "swiss"]
[EventCountry "TUR"]
[SourceTitle "playchess.com"]
[Source "ChessBase"]
[SourceQuality "1"]
[TimeControl "5400+30"]

1. e4 {[%emt 0:15:30]} e5 {[%emt 0:00:30]} 2. Nf3 {[%emt 0:00:30]} Nc6 {[%emt 0:00:30]} 3. Bb5 {[%emt 0:00:00]} a6 {[%emt 0:00:00]} 4. Ba4 {[%emt 0:00:00]} Nf6 {[%emt 0:00:00]} 5. O-O {[%emt 0:00:00]} Nxe4 {[%emt 0:03:30]} 6. Re1 {[%emt 0:02:00]} Nc5 {[%emt 0:00:30]} 7. Bxc6 {[%emt 0:00:30]} dxc6 {[%emt 0:00:30]} 8. Nxe5 {[%emt 0:00:00]} Be7 {[%emt 0:00:30]} 9. d4 {[%emt 0:00:00]} Ne6 {[%emt 0:00:30]} 10. Be3 {[%emt 0:00:00]} O-O {[%emt 0:00:30]} 11. c4 {[%emt 0:00:00]} Bg5 {[%emt 0:14:30]} 12. d5 {[%emt 0:08:30]} cxd5 {[%emt 0:02:30]} 13. cxd5 {[%emt 0:00:30]} Bxe3 {[%emt 0:10:30]} 14. Rxe3 {[%emt 0:12:30]} Nf4 {[%emt 0:06:30]} 15. Nc3 {[%emt 0:00:30]} Ng6 {[%emt 0:00:30]} 16. Qh5 {[%emt 0:03:30]} Nxe5 {[%emt 0:14:30]} 17. Rxe5 {[%emt 0:13:30]} Bd7 {[%emt 0:00:30]} 18. Re4 {[%emt 0:06:30]} Qf6 {[%emt 0:03:30]} 19. Rb4 {[%emt 0:03:30]} Rab8 {[%emt 0:11:30]} 20. Ne4 {[%emt 0:00:30]} Qe7 {[%emt 0:00:30]} 21. Rc4 {[%emt 0:03:30]} Bb5 {[%emt 0:03:30]} 22. Rd4 {[%emt 0:00:30]} Rbe8 {[%emt 0:01:30]} 23. h3 {[%emt 0:01:30]} c5 {[%emt 0:14:58]} 24. d6 {[%emt 0:04:30]} Qe5 {[%emt 0:00:01]} 25. Qxe5 {[%emt 0:00:30]} Rxe5 {[%emt 0:00:30]} 26. f4 {[%emt 0:00:30]} cxd4 {[%emt 0:02:58]} 27. fxe5 {[%emt 0:00:30]} Re8 {[%emt 0:02:32]} 28. a4 {[%emt 0:03:30]} Bc6 {[%emt 0:01:32]} 29. Nc5 {[%emt 0:00:30]} Kf8 {[%emt 0:00:02]} 30. Re1 {[%emt 0:00:30]} Rd8 {[%emt 0:01:55]} 31. Rd1 {[%emt 0:01:41]} a5 {[%emt 0:01:04]} 32. Rxd4 {[%emt 0:00:47]} Ke8 {[%emt 0:00:37]} 33. Rh4 {[%emt 0:01:32]} h6 {[%emt 0:00:38]} 34. Rg4 {[%emt 0:00:44]} b6 {[%emt 0:00:30]} 35. Na6 {[%emt 0:00:00]} Kd7 {[%emt 0:01:02]} 36. Nc7 {[%emt 0:00:18]} g5 {[%emt 0:00:55]} 37. Rd4 {[%emt 0:00:30]} Bb7 {[%emt 0:00:00]} 38. Kf2 {[%emt 0:00:00]} Kc6 {[%emt 0:00:31]} 39. Ke3 {[%emt 0:01:09]} Bc8 {[%emt 0:00:05]} 40. Rc4+ {[%emt 0:00:58]} Kd7 {[%emt 0:00:30]} 41. Nd5 {[%emt 0:00:16]} Ke6 {[%emt 0:00:00]} 42. Kd4 {[%emt 0:00:55]} Bd7 {[%emt 0:01:25]} 43. g4 {[%emt 0:00:18]} Bc8 {[%emt 0:01:04]} 44. Rc7 {[%emt 0:00:30]} Re8 {[%emt 0:00:00]} 45. Nf6 {[%emt 0:00:00]} 1-0

[Event "6th Cesme Open-A 2018"]
[Site "Cesme"]
[Date "2018.06.30"]
[Round "7.11"]
[White "Kamer, Kayra"]
[Black "Barsov, Alexei"]
[Result "0-1"]
[ECO "D77"]
[WhiteElo "2181"]
[BlackElo "2371"]
[Annotator "NA"]
[PlyCount "92"]
[EventDate "2018.06.26"]
[EventType "swiss"]
[EventCountry "TUR"]
[SourceTitle "playchess.com"]
[Source "ChessBase"]
[SourceQuality "1"]
[TimeControl "5400+30"]

1. Nf3 {[%emt 0:04:30]} d5 {[%emt 0:00:30]} 2. g3 {[%emt 0:00:30]} g6 {[%emt 0:00:00]} 3. Bg2 {[%emt 0:00:30]} Bg7 {[%emt 0:00:00]} 4. d4 {[%emt 0:01:30]} Nf6 {[%emt 0:00:30]} 5. O-O {[%emt 0:00:30]} O-O {[%emt 0:00:00]} 6. c4 {[%emt 0:00:00]} dxc4 {[%emt 0:01:00]} 7. Na3 {[%emt 0:00:00]} c3 {[%emt 0:00:30]} 8. bxc3 {[%emt 0:00:30]} c5 {[%emt 0:00:00]} 9. Ne5 {[%emt 0:04:30]} Nfd7 {[%emt 0:16:00]} 10. Nac4 {[%emt 0:03:30] LiveBook: 10 Games} Nxe5 {[%emt 0:05:30]} 11. Nxe5 {[%emt 0:00:30]} cxd4 {[%emt 0:00:30] D77: Fianchetto Grünfeld: 6 0-0: Replies other than 6...c6} 12. cxd4 {[%emt 0:00:30]} Nd7 {[%emt 0:00:00]} 13. Bf4 {[%emt 0:10:30]} (13. Bb2 Nxe5 14. dxe5 Qxd1 15. Rfxd1 Be6 16. f4 Rac8 17. Rdc1 b6 18. a4 Bc4 19. Kf2 {0-1 (51) Fressinet,L (2672)-Henriquez Villagra,C (2517) Doha 2016}) 13... Nxe5 {[%emt 0:15:00]} 14. dxe5 {[%emt 0:01:30]} Qa5 {[%emt 0:00:00]} 15. Qd5 {[%emt 0:00:00]} Qa6 $146 {[%emt 0:00:00]} ({Predecessor:} 15... Qxd5 16. Bxd5 Rb8 17. Rfc1 b6 18. Rab1 {½-½ (35) Mahalakshmi,M (2191)-Gomez Barrera,J (1972) Tarvisio 2017}) 16. Rac1 {[%emt 0:11:00]} Rb8 {[%emt 0:04:30]} 17. Qc5 {[%emt 0:05:30]} Be6 {[%emt 0:13:30]} 18. Qxe7 {[%emt 0:00:30]} Qxa2 {[%emt 0:03:30]} 19. Rc7 {[%emt 0:05:30]} (19. Bxb7 $11 {keeps the balance.} Qxe2 20. Rfe1) 19... b5 {[%emt 0:14:30]} 20. Rxa7 {[%emt 0:02:30]} Qxe2 {[%emt 0:00:00]} 21. Qb4 {[%emt 0:18:30]} Rfd8 {[%emt 0:04:00]} 22. h4 {[%emt 0:05:30]} Bxe5 {[%emt 0:03:32]} 23. Bg5 {[%emt 0:00:00]} Rd1 {[%emt 0:03:19]} 24. Rxd1 {[%emt 0:01:00]} Qxd1+ {[%emt 0:00:06]} 25. Kh2 {[%emt 0:00:00]} Qd4 {[%emt 0:05:17]} 26. Qxd4 {[%emt 0:01:00]} Bxd4 {[%emt 0:00:30]} 27. Ra5 {[%emt 0:00:00]} b4 {[%emt 0:03:48]} 28. Bf4 {[%emt 0:00:00]} Rc8 {[%emt 0:00:00]} 29. Bb7 {[%emt 0:05:10]} (29. Be5 {was worth a try.} Bxe5 30. Rxe5) 29... Rc2 {[%emt 0:03:22]} 30. Bh6 {[%emt 0:00:30]} Rxf2+ {[%emt 0:00:00]} 31. Kh1 {[%emt 0:00:19]} Rf1+ {[%emt 0:03:10]} 32. Kg2 {[%emt 0:01:03]} Rf2+ {[%emt 0:00:30]} 33. Kh1 {[%emt 0:00:00]} f5 {[%emt 0:01:17]} 34. Bc6 {[%emt 0:00:00]} Rf1+ {[%emt 0:00:10]} 35. Kg2 {[%emt 0:00:28]} Rf2+ {[%emt 0:00:30]} 36. Kh1 {[%emt 0:00:00]} Rc2 {[%emt 0:01:42]} 37. Ba4 {[%emt 0:03:08]} Rc8 {[%emt 0:01:01]} 38. Rb5 {[%emt 0:01:40]} Bc3 {[%emt 0:00:11]} 39. Rb6 {[%emt 0:00:16]} Bd5+ {[%emt 0:00:30]} 40. Kh2 {[%emt 0:00:00]} Ra8 $19 {[%emt 0:00:02]} 41. Rb5 {[%emt 0:04:51]} Rxa4 {[%emt 0:00:39]} 42. Rxd5 {[%emt 0:00:02]} b3 {[%emt 0:00:47]} 43. Rd8+ {[%emt 0:01:02]} Kf7 {[%emt 0:00:01]} 44. Rf8+ {[%emt 0:00:00]} Ke6 {[%emt 0:00:40]} 45. Re8+ {[%emt 0:01:25]} Kd7 {[%emt 0:00:38]} 46. Rb8 {[%emt 0:00:40]} Rxh4+ {[%emt 0:00:19]} 0-1

[Event "6th Cesme Open-A 2018"]
[Site "Cesme"]
[Date "2018.06.30"]
[Round "7.12"]
[White "Yildiz Kadioglu, Betul Cemre"]
[Black "Cansun, Can Alp"]
[Result "1-0"]
[ECO "B41"]
[WhiteElo "2323"]
[BlackElo "1918"]
[Annotator "NA"]
[PlyCount "129"]
[EventDate "2018.06.26"]
[EventType "swiss"]
[EventCountry "TUR"]
[SourceTitle "playchess.com"]
[Source "ChessBase"]
[SourceQuality "1"]
[TimeControl "5400+30"]

1. e4 {[%emt 0:00:30]} c5 {[%emt 0:00:30]} 2. Nf3 {[%emt 0:00:30]} e6 {[%emt 0:00:30]} 3. d4 {[%emt 0:00:30]} cxd4 {[%emt 0:00:30]} 4. Nxd4 {[%emt 0:00:30]} a6 {[%emt 0:00:30]} 5. c4 {[%emt 0:00:00]} Nf6 {[%emt 0:00:00]} 6. Nc3 {[%emt 0:00:00]} Bb4 {[%emt 0:00:00]} 7. Bd3 {[%emt 0:00:00]} Nc6 {[%emt 0:00:00]} 8. a3 {[%emt 0:00:00] B41: Sicilian: Kan Variation: 5 c4} (8. Be3 Ne5 9. O-O Bxc3 10. bxc3 Qc7 11. h3 b6 12. Rb1 Bb7 13. f3 d6 14. Be2 O-O 15. Qb3 Ned7 16. Nc2 {1-0 (68) Nguyen,A (2465)-Gareyev,T (2611) Singapore 2018}) 8... Bd6 {[%emt 0:02:00]} 9. Nf3 $146 {[%emt 0:01:30]} Qc7 {[%emt 0:00:30]} 10. h3 {[%emt 0:03:30]} h6 {[%emt 0:07:30]} 11. Be3 {[%emt 0:08:30]} b6 {[%emt 0:03:30]} 12. Rc1 {[%emt 0:09:30]} Ne5 {[%emt 0:22:30]} 13. Nxe5 {[%emt 0:07:30]} Bxe5 {[%emt 0:00:30]} 14. Na4 {[%emt 0:01:30]} Rb8 {[%emt 0:00:30]} 15. O-O {[%emt 0:01:30]} Bh2+ {[%emt 0:03:30]} 16. Kh1 {[%emt 0:00:30]} Bf4 {[%emt 0:00:30]} 17. Qf3 {[%emt 0:02:30]} Bxe3 {[%emt 0:00:30]} 18. Qxe3 {[%emt 0:00:30]} d6 {[%emt 0:01:30]} 19. b4 {[%emt 0:01:30]} O-O {[%emt 0:03:30]} 20. f4 {[%emt 0:00:30]} Bb7 {[%emt 0:10:30]} 21. Nc3 {[%emt 0:00:30]} Rbd8 {[%emt 0:00:30]} 22. Ne2 {[%emt 0:07:30]} Qb8 {[%emt 0:04:30]} 23. Nd4 {[%emt 0:07:30]} Qa8 {[%emt 0:01:30]} 24. Rce1 {[%emt 0:00:30]} Rfe8 {[%emt 0:01:30]} 25. Re2 {[%emt 0:04:30]} e5 {[%emt 0:12:30]} (25... Nh5 $11 {remains equal.}) 26. Nf5 {[%emt 0:00:00]} Nh5 {[%emt 0:05:21]} 27. g3 {[%emt 0:09:00]} exf4 {[%emt 0:02:02]} 28. gxf4 {[%emt 0:00:30]} Re6 {[%emt 0:05:27]} 29. Qf3 {[%emt 0:08:30]} Nf6 {[%emt 0:03:56]} (29... g6 $11 {hält das Gleichgewicht.}) 30. Qg2 {[%emt 0:04:30]} Ne8 {[%emt 0:05:51]} 31. Kh2 {[%emt 0:04:02]} Kh8 {[%emt 0:00:30]} 32. Rfe1 {[%emt 0:00:30]} Rg6 {[%emt 0:00:50]} 33. Qf2 {[%emt 0:00:24]} b5 {[%emt 0:01:37]} 34. Qd4 {[%emt 0:02:41]} Nc7 {[%emt 0:00:56]} 35. Nh4 {[%emt 0:09:27]} Rf6 {[%emt 0:00:46]} 36. f5 {[%emt 0:00:02]} bxc4 {[%emt 0:00:08]} 37. Bxc4 {[%emt 0:01:29]} d5 {[%emt 0:00:11]} 38. e5 {[%emt 0:05:02]} dxc4 {[%emt 0:00:42]} 39. Qxc4 {[%emt 0:00:01]} Rc6 {[%emt 0:01:22]} 40. Qxf7 {[%emt 0:00:02]} Nd5 {[%emt 0:00:04]} 41. f6 {[%emt 0:00:46]} Rxf6 {[%emt 0:00:43]} 42. exf6 {[%emt 0:00:43]} Qb8+ {[%emt 0:00:01]} 43. Kg1 {[%emt 0:01:24]} Nxf6 {[%emt 0:00:54]} 44. Nf5 {[%emt 0:00:52]} Rg8 {[%emt 0:00:28]} 45. Qg6 {[%emt 0:00:31]} Qc7 {[%emt 0:00:38]} 46. Qg3 {[%emt 0:00:41]} Qc6 {[%emt 0:00:30]} 47. Kh2 {[%emt 0:00:00]} Nd5 {[%emt 0:00:31]} 48. Rg1 {[%emt 0:00:49]} Qf6 {[%emt 0:00:57]} 49. Rf2 {[%emt 0:00:13]} Qe6 {[%emt 0:00:03]} 50. Nd6 {[%emt 0:00:39]} Bc6 {[%emt 0:00:55]} 51. Nf7+ {[%emt 0:00:30]} Kh7 {[%emt 0:00:00]} 52. Ne5 {[%emt 0:00:30]} Be8 {[%emt 0:00:13]} 53. Rf8 {[%emt 0:00:19]} Nf6 {[%emt 0:01:12]} 54. Rxg8 {[%emt 0:00:30]} Qxg8 {[%emt 0:00:00]} 55. Qd3+ {[%emt 0:00:39]} g6 $2 {[%emt 0:00:13]} (55... Kh8 {keeps fighting.} 56. Qc4 Qxc4 57. Nxc4 Kg8) 56. Qxa6 {[%emt 0:00:27]} Nd5 {[%emt 0:00:56]} 57. Qd6 {[%emt 0:00:17]} Nf4 {[%emt 0:00:31]} 58. Qe7+ {[%emt 0:00:29]} Qg7 {[%emt 0:00:42]} 59. Qxe8 {[%emt 0:00:21]} Nd3 {[%emt 0:00:18]} 60. Nxd3 {[%emt 0:01:12]} Qc7+ {[%emt 0:00:08]} 61. Qe5 {[%emt 0:00:19]} Qc2+ {[%emt 0:00:06]} 62. Rg2 {[%emt 0:00:21]} Qxd3 {[%emt 0:00:30]} 63. Qe7+ {[%emt 0:00:30]} Kg8 {[%emt 0:00:30]} 64. Qe6+ {[%emt 0:00:00]} Kg7 {[%emt 0:00:00] [#]} 65. Qxg6+ $18 {[%emt 0:00:00]} 1-0

[Event "6th Cesme Open-A 2018"]
[Site "Cesme"]
[Date "2018.06.30"]
[Round "7.13"]
[White "Samani, Yamac"]
[Black "Haznedaroglu, Kivanc"]
[Result "0-1"]
[ECO "B66"]
[WhiteElo "2227"]
[BlackElo "2472"]
[Annotator "ChessBase"]
[PlyCount "104"]
[EventDate "2018.06.26"]
[EventType "swiss"]
[EventCountry "TUR"]
[SourceTitle "playchess.com"]
[Source "ChessBase"]
[SourceQuality "1"]
[TimeControl "5400+30"]

1. e4 {[%emt 0:00:30]} c5 {[%emt 0:01:30]} 2. Nf3 {[%emt 0:00:00]} Nc6 {[%emt 0:00:30]} 3. d4 {[%emt 0:01:00]} cxd4 {[%emt 0:00:30]} 4. Nxd4 {[%emt 0:00:00]} Nf6 {[%emt 0:00:30]} 5. Nc3 {[%emt 0:00:00]} d6 {[%emt 0:00:00]} 6. Bg5 {[%emt 0:05:30]} e6 {[%emt 0:02:00]} 7. Qd2 {[%emt 0:00:30]} a6 {[%emt 0:00:00]} 8. O-O-O {[%emt 0:00:30]} Bd7 {[%emt 0:01:00]} 9. f3 {[%emt 0:02:30]} h6 {[%emt 0:02:30]} 10. Be3 {[%emt 0:01:30]} h5 {[%emt 0:00:00]} 11. Kb1 {[%emt 0:01:30]} Be7 {[%emt 0:01:00]} 12. Bd3 {[%emt 0:09:30]} b5 {[%emt 0:03:30]} 13. g3 {[%emt 0:15:30]} Qc7 {[%emt 0:02:30]} 14. h3 {[%emt 0:04:30]} b4 {[%emt 0:03:30]} 15. Nce2 {[%emt 0:00:30]} d5 {[%emt 0:00:30]} 16. Nxc6 {[%emt 0:03:30]} Bxc6 {[%emt 0:01:30]} 17. e5 {[%emt 0:08:30]} Nd7 {[%emt 0:00:00]} 18. Nd4 {[%emt 0:15:30]} Nxe5 {[%emt 0:06:00]} 19. Bf4 {[%emt 0:01:30]} Bd6 {[%emt 0:00:00]} 20. Rhe1 {[%emt 0:04:30]} Bb7 {[%emt 0:14:00]} 21. Nf5 {[%emt 0:08:28]} f6 {[%emt 0:00:30]} 22. Nxd6+ {[%emt 0:01:47]} Qxd6 {[%emt 0:00:00]} 23. Bxe5 {[%emt 0:01:18]} fxe5 {[%emt 0:00:00]} 24. Qg5 {[%emt 0:00:59]} h4 {[%emt 0:03:30]} 25. Rxe5 {[%emt 0:01:39]} O-O {[%emt 0:03:30]} 26. f4 {[%emt 0:03:00]} hxg3 {[%emt 0:05:30]} 27. Rg1 {[%emt 0:00:58]} Qd8 {[%emt 0:00:30]} 28. Qxg3 {[%emt 0:02:26]} Rf7 {[%emt 0:08:30]} 29. Rg5 {[%emt 0:01:13]} Qf6 {[%emt 0:02:30]} 30. Bg6 {[%emt 0:01:47]} Rc7 {[%emt 0:01:30]} 31. Qh4 {[%emt 0:00:27]} Kf8 {[%emt 0:05:30]} 32. Bd3 {[%emt 0:00:21]} Rf7 {[%emt 0:01:30]} 33. Qh7 {[%emt 0:02:23]} Qh6 {[%emt 0:07:30]} 34. Qxh6 {[%emt 0:00:42]} gxh6 {[%emt 0:00:30]} 35. Rg6 {[%emt 0:00:30]} Ke7 {[%emt 0:00:30]} 36. Rxh6 {[%emt 0:00:05]} Raf8 {[%emt 0:12:53]} 37. Re1 {[%emt 0:00:17]} Rf6 {[%emt 0:00:09]} 38. Rxf6 {[%emt 0:00:46]} Kxf6 {[%emt 0:00:08]} 39. b3 {[%emt 0:00:59]} Rh8 {[%emt 0:00:21]} 40. Re3 {[%emt 0:01:01]} Rh4 {[%emt 0:00:11]} 41. Rf3 {[%emt 0:00:04]} d4 {[%emt 0:01:05]} 42. Rg3 {[%emt 0:01:23]} Rxf4 {[%emt 0:01:36]} 43. Rg6+ {[%emt 0:00:16]} Ke5 {[%emt 0:03:40]} 44. Rh6 {[%emt 0:01:25]} Be4 {[%emt 0:02:23]} 45. Bc4 {[%emt 0:00:36]} Bf5 {[%emt 0:00:06]} 46. Bxa6 {[%emt 0:00:19]} Rf3 {[%emt 0:00:58]} 47. h4 {[%emt 0:00:17]} Rh3 {[%emt 0:00:03]} 48. Rh8 {[%emt 0:00:24]} Rh1+ {[%emt 0:00:38]} 49. Kb2 {[%emt 0:00:30]} Rh2 {[%emt 0:00:00]} 50. Rc8 {[%emt 0:00:00]} d3 {[%emt 0:00:28]} 51. a4 {[%emt 0:01:20]} bxa3+ {[%emt 0:00:07]} 52. Kxa3 {[%emt 0:00:21]} d2 {[%emt 0:00:04]} 0-1